fUSD/lending_fUSD_20260318
["ID","MTS","AMOUNT","RATE_DAILY","PERIOD"]
[408528610,1773834643140,-404.94,0.00016821,2]
[408528611,1773834643150,-600.0,0.000169,6]
[408528612,1773834643160,-500.0,0.00016904,2]
[408528613,1773834643170,-166.66,0.00016908,2]
[408528614,1773834643178,-633.44655475,0.00017,2]
[408528615,1773834643188,-1527.61113217,0.00017,2]
[408528616,1773834643198,-3315.94028702,0.00017,2]
[408528617,1773834643207,-2134.54720229,0.00017,2]
[408528618,1773834643217,-4348.8087,0.0001703,2]
[408528619,1773834643226,-1607.891,0.0001703,2]
[408528620,1773834643236,-452.9940534,0.00017031,2]
[408528621,1773834643245,-1133.27438163,0.00017035,2]
[408528622,1773834643255,-444.62306628,0.00017039,2]
[408528623,1773834643267,-500.0,0.0001712,2]
[408528625,1773834643276,-200.0,0.0001712,2]
[408528626,1773834643286,-500.0,0.00017129,2]
[408528627,1773834643295,-500.0,0.00017129,2]
[408528628,1773834643306,-500.0,0.00017129,2]
[408528629,1773834643315,-500.0,0.00017129,2]
[408528630,1773834643324,-500.0,0.00017129,2]
[408528631,1773834643334,-500.0,0.00017129,2]
[408528632,1773834643344,-500.0,0.00017129,2]
[408528633,1773834643354,-500.0,0.00017129,2]
[408528634,1773834643364,-500.0,0.00017129,2]
[408528635,1773834643373,-500.0,0.00017129,2]
[408528636,1773834643382,-500.0,0.00017129,2]
[408528637,1773834643392,-500.0,0.00017129,2]
[408528638,1773834643402,-500.0,0.00017129,2]
[408528639,1773834643411,-457.7059963,0.00017129,2]
[408528640,1773834643420,-500.0,0.00017129,2]
[408528642,1773834643430,-500.0,0.00017129,2]
[408528643,1773834643440,-500.0,0.00017129,2]
[408528644,1773834643450,-295.353,0.00017129,2]
[408528645,1773834643460,-388210.27229719,0.0001713,2]
[408528647,1773834645545,-482.69971466,0.00016003,2]
[408528650,1773834645603,-578.36122141,0.00016003,2]
[408528651,1773834645613,-4433.15557859,0.0001713,2]
[408528652,1773834645654,-2856.80867312,0.0001713,2]
[408528653,1773834645666,-1462.0,0.0001713,2]
[408528654,1773834645869,-6923.97021824,0.0001713,2]
[408528655,1773834645881,-1664.80427889,0.0001713,2]
[408528656,1773834645892,-1159.86539298,0.0001713,2]
[408528657,1773834645924,-773.04339018,0.0001713,2]
[408528660,1773834646093,-475.0,0.0001713,2]
[408528661,1773834646108,-1093.9249713,0.0001713,2]
[408528662,1773834646119,-565.6000001,0.0001713,2]
[408528663,1773834646131,-909.88,0.0001713,2]
[408528664,1773834786038,-918.4661,0.00015858,2]
[408528665,1773834786051,-519.1137,0.00015858,2]
[408528666,1773834786061,-500.0,0.00016057,2]
[408528667,1773834786071,-418.4661,0.00016057,2]
[408528671,1773835215933,10000.0,0.00013587,2]
[408528672,1773835240190,0.01,0.00013587,2]
[408528673,1773835240212,4775.99,0.00013587,2]
[408528676,1773835774279,3619.79,0.0003,120]
[408528677,1773835790096,500.0,0.0003013,120]
[408528686,1773835831779,-1765.99,0.00013999,2]
[408528687,1773835831789,-2484.60824,0.0001584,2]
[408528688,1773835831798,-1000.0,0.00016,4]
[408528689,1773835831808,-300.0,0.00016056,30]
[408528690,1773835831818,-255.0,0.00016056,2]
[408528691,1773835831827,-1200.0,0.00016056,2]
[408528692,1773835831837,-81.5339,0.00016057,2]
[408528693,1773835831846,-500.0,0.00016057,2]
[408528694,1773835831856,-500.0,0.00016057,2]
[408528695,1773835831865,-500.0,0.00016057,2]
[408528696,1773835831876,-500.0,0.00016057,2]
[408528697,1773835831886,-500.0,0.00016057,2]
[408528698,1773835831896,-500.0,0.00016057,2]
[408528699,1773835831906,-500.0,0.00016057,2]
[408528700,1773835831916,-500.0,0.00016057,2]
[408528701,1773835831925,-500.0,0.00016057,2]
[408528702,1773835831935,-500.0,0.00016057,2]
[408528703,1773835831945,-500.0,0.00016057,2]
[408528704,1773835831955,-500.0,0.00016057,2]
[408528705,1773835831964,-337.77176716,0.00016057,2]
[408528706,1773835831975,-162.22823284,0.00016057,2]
[408528707,1773835831985,-146.06383058,0.00016057,2]
[408528708,1773835831996,-353.93616942,0.00016057,2]
[408528710,1773835832006,-500.0,0.00016057,2]
[408528712,1773835832015,-500.0,0.00016057,2]
[408528714,1773835832024,-500.0,0.00016057,2]
[408528716,1773835832034,-465.75163058,0.00016057,2]
[408528718,1773835832046,-34.24836942,0.00016057,2]
[408528720,1773835832055,-500.0,0.00016057,2]
[408528721,1773835832064,-130.30154413,0.00016057,2]
[408528722,1773835832076,-369.69845587,0.00016057,2]
[408528724,1773835832088,-500.0,0.00016057,2]
[408528727,1773835832097,-500.0,0.00016057,2]
[408528729,1773835832106,-237.02881571,0.00016057,2]
[408528731,1773835832117,-262.97118429,0.00016057,2]
[408528733,1773835832129,-500.0,0.00016057,2]
[408528734,1773835832139,-500.0,0.00016057,2]
[408528735,1773835832149,-735.53624056,0.00016067,2]
[408528736,1773835832160,-243.63042611,0.00016067,2]
[408528737,1773835832170,-308.95363444,0.0001613,2]
[408528738,1773835832179,-250.72299322,0.00016273,2]
[408528739,1773835832189,-1000.0,0.000163,4]
[408528740,1773835832202,-620.0,0.00016458,2]
[408528741,1773835832212,-1044.0,0.00016458,2]
[408528742,1773835832221,-1173.28475502,0.00016458,2]
[408528743,1773835832232,-748.00966555,0.00016458,2]
[408528744,1773835832243,-4083.70557943,0.00016458,2]
[408528745,1773835832252,-2535.922,0.00016458,2]
[408528746,1773835832262,-209.05,0.00016539,2]
[408528747,1773835832271,-4057.14031968,0.00016581,2]
[408528748,1773835832281,-174.61919141,0.00016581,2]
[408528749,1773835832290,-151.0,0.00016581,2]
[408528750,1773835832299,-150.0,0.00016709,2]
[408528751,1773835832309,-1226.329,0.00016709,2]
[408528752,1773835832318,-1344.0,0.00016709,2]
[408528753,1773835832328,-2000.0,0.00016738,2]
[408528754,1773835832337,-200.0,0.00016738,2]
[408528755,1773835832347,-1845.54,0.00016738,2]
[408528756,1773835832356,-2000.0,0.00016738,2]
[408528757,1773835832366,-150.0,0.00016738,2]
[408528758,1773835832376,-50817.57,0.00016738,2]
[408528759,1773835832385,-250.0,0.00016821,2]
[408528760,1773835832394,-300.0,0.000169,2]
[408528761,1773835832404,-2000.0,0.000169,2]
[408528762,1773835832413,-1707.1926541,0.0001693,2]
[408528763,1773835832422,-628.3172,0.0001693,2]
[408528764,1773835832431,-2500.0,0.0001693,2]
[408528765,1773835832441,-662.1323983,0.0001696,2]
[408528766,1773835832451,-3733.24856206,0.00017016,2]
[408528767,1773835832460,-151.0,0.0001702,2]
[408528768,1773835832469,-155.45790751,0.00017027,2]
[408528769,1773835832478,-15431.0558,0.0001703,2]
[408528770,1773835832488,-178120.3492,0.0001703,2]
[408528771,1773835832497,-1707.19265401,0.00017038,2]
[408528772,1773835832506,-261.0,0.00017079,2]
[408528773,1773835832516,-3733.24856202,0.00017114,2]
[408528774,1773835832525,-500.0,0.00017115,2]
[408528775,1773835832534,-500.0,0.00017115,2]
[408528776,1773835832544,-500.0,0.00017115,2]
[408528777,1773835832553,-500.0,0.00017115,2]
[408528778,1773835832563,-500.0,0.00017115,2]
[408528779,1773835832572,-500.0,0.00017115,2]
[408528780,1773835832581,-500.0,0.00017115,2]
[408528781,1773835832591,-500.0,0.00017115,2]
[408528782,1773835832600,-500.0,0.00017115,2]
[408528783,1773835832609,-500.0,0.00017115,2]
[408528784,1773835832619,-500.0,0.00017115,2]
[408528785,1773835832629,-191.02650272,0.00017115,2]
[408528786,1773835832638,-164308.27719,0.00017116,2]
[408528787,1773835832648,-151.0,0.00017116,2]
[408528788,1773835832657,-5426.8470544,0.00017116,2]
[408528789,1773835832666,-408.371684,0.00017116,2]
[408528790,1773835832676,-408.371684,0.00017116,2]
[408528791,1773835832685,-408.371684,0.00017116,2]
[408528792,1773835832695,-408.371684,0.00017116,2]
[408528793,1773835832705,-34654.0947406,0.00017116,2]
[408528794,1773835832714,-195.904356,0.00017116,2]
[408528795,1773835832724,-195.904356,0.00017116,2]
[408528796,1773835832733,-195.904356,0.00017116,2]
[408528797,1773835832743,-195.904356,0.00017116,2]
[408528798,1773835832756,-366.354819,0.00017116,2]
[408528799,1773835832766,-366.354819,0.00017116,2]
[408528800,1773835832775,-366.354819,0.00017116,2]
[408528801,1773835832785,-366.354819,0.00017116,2]
[408528802,1773835832794,-151.0,0.00017116,2]
[408528803,1773835832803,-14912.7169849,0.00017119,2]
[408528804,1773835832813,-154.72587907,0.00017127,2]
[408528805,1773835832823,-200.0,0.0001713,2]
[408528806,1773835832832,-200.0,0.0001713,2]
[408528807,1773835832842,-151.0,0.0001713,2]
[408528808,1773835832851,-151.0,0.0001713,2]
[408528809,1773835832860,-200.0,0.0001713,2]
[408528810,1773835832870,-1707.19265401,0.00017146,2]
[408528811,1773835832881,-2915.10963803,0.00017155,2]
[408528812,1773835832891,-150.0,0.00017197,2]
[408528813,1773835832901,-152.85404086,0.00017197,2]
[408528814,1773835832911,-155.0,0.00017199,2]
[408528815,1773835832920,-534.0,0.000172,2]
[408528816,1773835832931,-500.0,0.000172,2]
[408528817,1773835832940,-500.0,0.000172,2]
[408528818,1773835832952,-500.0,0.000172,2]
[408528819,1773835832962,-500.0,0.000172,2]
[408528820,1773835832973,-500.0,0.000172,2]
[408528821,1773835832987,-500.0,0.000172,2]
[408528822,1773835832997,-500.0,0.000172,2]
[408528823,1773835833019,-500.0,0.000172,2]
[408528824,1773835833038,-500.0,0.000172,2]
[408528825,1773835833052,-500.0,0.000172,2]
[408528826,1773835833078,-500.0,0.000172,2]
[408528827,1773835833090,-500.0,0.000172,2]
[408528828,1773835833107,-500.0,0.000172,2]
[408528829,1773835833121,-500.0,0.000172,2]
[408528830,1773835833137,-500.0,0.000172,2]
[408528831,1773835833153,-500.0,0.000172,2]
[408528832,1773835833175,-500.0,0.000172,2]
[408528833,1773835833186,-500.0,0.000172,2]
[408528834,1773835833196,-500.0,0.000172,2]
[408528835,1773835833207,-500.0,0.000172,2]
[408528836,1773835833218,-500.0,0.000172,2]
[408528837,1773835833231,-500.0,0.000172,2]
[408528838,1773835833242,-500.0,0.000172,2]
[408528839,1773835833252,-500.0,0.000172,2]
[408528840,1773835833262,-500.0,0.000172,2]
[408528841,1773835833273,-500.0,0.000172,2]
[408528842,1773835833283,-500.0,0.000172,2]
[408528843,1773835833292,-500.0,0.000172,2]
[408528844,1773835833302,-500.0,0.000172,2]
[408528845,1773835833313,-500.0,0.000172,2]
[408528846,1773835833331,-500.0,0.000172,2]
[408528847,1773835833340,-500.0,0.000172,2]
[408528848,1773835833350,-500.0,0.000172,2]
[408528849,1773835833359,-500.0,0.000172,2]
[408528850,1773835833369,-500.0,0.000172,2]
[408528851,1773835833379,-500.0,0.000172,2]
[408528852,1773835833392,-500.0,0.000172,2]
[408528853,1773835833421,-500.0,0.000172,2]
[408528854,1773835833433,-500.0,0.000172,2]
[408528855,1773835833444,-500.0,0.000172,2]
[408528856,1773835833455,-500.0,0.000172,2]
[408528857,1773835833465,-500.0,0.000172,2]
[408528858,1773835833476,-500.0,0.000172,2]
[408528859,1773835833486,-500.0,0.000172,2]
[408528860,1773835833496,-500.0,0.000172,2]
[408528861,1773835833506,-500.0,0.000172,2]
[408528862,1773835833516,-500.0,0.000172,2]
[408528863,1773835833527,-500.0,0.000172,2]
[408528864,1773835833536,-500.0,0.000172,2]
[408528865,1773835833545,-500.0,0.000172,2]
[408528866,1773835833555,-500.0,0.000172,2]
[408528867,1773835833565,-500.0,0.000172,2]
[408528868,1773835833586,-500.0,0.000172,2]
[408528869,1773835833595,-500.0,0.000172,2]
[408528870,1773835833606,-500.0,0.000172,2]
[408528871,1773835833619,-500.0,0.000172,2]
[408528872,1773835833630,-500.0,0.000172,2]
[408528873,1773835833642,-500.0,0.000172,2]
[408528874,1773835833671,-195.904356,0.000172,2]
[408528875,1773835833692,-195.904356,0.000172,2]
[408528876,1773835833704,-195.904356,0.000172,2]
[408528877,1773835833723,-195.904356,0.000172,2]
[408528878,1773835833746,-366.354819,0.000172,2]
[408528879,1773835833774,-366.354819,0.000172,2]
[408528880,1773835833785,-366.354819,0.000172,2]
[408528881,1773835833796,-366.354819,0.000172,2]
[408528882,1773835834012,-500.0,0.000172,2]
[408528883,1773835834022,-500.0,0.000172,2]
[408528884,1773835834032,-500.0,0.000172,2]
[408528885,1773835834042,-500.0,0.000172,2]
[408528886,1773835834052,-500.0,0.000172,2]
[408528887,1773835834061,-500.0,0.000172,2]
[408528888,1773835834071,-500.0,0.000172,2]
[408528889,1773835834080,-500.0,0.000172,2]
[408528890,1773835834090,-500.0,0.000172,2]
[408528891,1773835834099,-500.0,0.000172,2]
[408528892,1773835834109,-500.0,0.000172,2]
[408528893,1773835834118,-500.0,0.000172,2]
[408528894,1773835834128,-500.0,0.000172,2]
[408528895,1773835834137,-500.0,0.000172,2]
[408528896,1773835834147,-500.0,0.000172,2]
[408528897,1773835834156,-500.0,0.000172,2]
[408528898,1773835834166,-500.0,0.000172,2]
[408528899,1773835834176,-500.0,0.000172,2]
[408528900,1773835834186,-500.0,0.000172,2]
[408528901,1773835834195,-500.0,0.000172,2]
[408528902,1773835834205,-500.0,0.000172,2]
[408528903,1773835834215,-500.0,0.000172,2]
[408528904,1773835834225,-717.0,0.000172,2]
[408528905,1773835834235,-500.0,0.000172,2]
[408528906,1773835834244,-500.0,0.000172,2]
[408528907,1773835834255,-500.0,0.000172,2]
[408528908,1773835834264,-500.0,0.000172,2]
[408528909,1773835834274,-500.0,0.000172,2]
[408528910,1773835834284,-500.0,0.000172,2]
[408528911,1773835834293,-500.0,0.000172,2]
[408528912,1773835834302,-500.0,0.000172,2]
[408528913,1773835834313,-500.0,0.000172,2]
[408528914,1773835834322,-500.0,0.000172,2]
[408528915,1773835834331,-500.0,0.000172,2]
[408528916,1773835834343,-500.0,0.000172,2]
[408528917,1773835834353,-500.0,0.000172,2]
[408528918,1773835834363,-500.0,0.000172,2]
[408528919,1773835834374,-500.0,0.000172,2]
[408528920,1773835834383,-500.0,0.000172,2]
[408528921,1773835834393,-500.0,0.000172,2]
[408528922,1773835834402,-500.0,0.000172,2]
[408528923,1773835834412,-500.0,0.000172,2]
[408528924,1773835834421,-500.0,0.000172,2]
[408528925,1773835834430,-500.0,0.000172,2]
[408528926,1773835834439,-500.0,0.000172,2]
[408528927,1773835834449,-900.0,0.000172,6]
[408528928,1773835834459,-361.7214811,0.00017211,2]
[408528929,1773835834468,-3733.24856202,0.00017212,2]
[408528930,1773835834477,-404.94,0.00017222,2]
[408528931,1773835834487,-266.56332,0.0001723,2]
[408528932,1773835834496,-167.28,0.00017241,2]
[408528933,1773835834505,-1707.19265401,0.00017253,2]
[408528934,1773835834515,-408.371684,0.00017298,2]
[408528935,1773835834524,-408.371684,0.00017298,2]
[408528936,1773835834534,-408.371684,0.00017298,2]
[408528937,1773835834543,-408.371684,0.00017298,2]
[408528938,1773835834552,-1284.0,0.00017298,2]
[408528939,1773835834562,-1800.0,0.000173,6]
[408528940,1773835834571,-200.0,0.00017301,2]
[408528941,1773835834581,-200.0,0.00017301,2]
[408528942,1773835834851,-200.0,0.00017301,2]
[408528943,1773835834861,-3733.24856202,0.00017311,2]
[408528944,1773835834870,-160.0,0.00017326,7]
[408528945,1773835834881,-188.921974,0.00017326,7]
[408528946,1773835834891,-217.843948,0.00017326,7]
[408528947,1773835834900,-266.56332,0.0001733,2]
[408528948,1773835834909,-192.55,0.00017339,2]
[408528949,1773835834918,-208.538636,0.00017346,7]
[408528950,1773835834927,-151.0,0.00017351,2]
[408528951,1773835834936,-151.0,0.00017351,2]
[408528952,1773835834945,-500.0,0.00017351,2]
[408528953,1773835834955,-500.0,0.00017351,2]
[408528954,1773835834964,-526.0,0.00017351,2]
[408528955,1773835834974,-500.0,0.00017351,2]
[408528956,1773835834983,-500.0,0.00017351,2]
[408528957,1773835834992,-443.4640706,0.00017351,2]
[408528958,1773835835001,-150.0,0.00017351,2]
[408528959,1773835835012,-250.0,0.00017351,2]
[408528960,1773835835021,-1707.19265401,0.00017361,2]
[408528961,1773835835030,-168.0,0.00017379,2]
[408528962,1773835835040,-971.341,0.0001738,2]
[408528963,1773835835049,-151.0,0.00017395,2]
[408528964,1773835835059,-151.0,0.00017397,2]
[408528965,1773835835070,-318.20992604,0.00017399,2]
[408528966,1773835835080,-503.21014115,0.00017399,2]
[408528967,1773835835091,-500.0,0.00017399,2]
[408528968,1773835835100,-300.0,0.00017399,2]
[408528969,1773835835110,-288294.18218784,0.000174,2]
[408528970,1773835835139,-927.69623708,0.000174,2]
[408528971,1773835835151,-128639.56119691,0.000174,2]
[408528972,1773835835162,-33586.6976079,0.000174,2]
[408528973,1773835835175,-1454.70603225,0.000174,2]
[408528976,1773835837846,-151.0,0.00017116,2]
[408528977,1773835837856,-500.0,0.000172,2]
[408528978,1773835837865,-312.45053944,0.000172,2]
[408528979,1773835837878,-187.54946056,0.000172,2]
[408528980,1773835837887,-500.0,0.000172,2]
[408528981,1773835837896,-500.0,0.000172,2]
[408528982,1773835837906,-500.0,0.000172,2]
[408528983,1773835837915,-250.960722,0.000172,2]
[408528984,1773835837924,-258.91743464,0.000172,2]
[408528985,1773835837936,-241.08256536,0.000172,2]
[408528986,1773835837945,-500.0,0.000172,2]
[408528987,1773835837954,-151.0,0.000172,2]
[408528988,1773835837964,-151.0,0.000172,2]
[408528989,1773835837973,-500.0,0.000172,2]
[408528990,1773835837982,-500.0,0.000172,2]
[408528991,1773835837991,-500.0,0.000172,2]
[408528992,1773835838000,-285.414984,0.000172,2]
[408528993,1773835838011,-214.585016,0.000172,2]
[408528994,1773835838021,-500.0,0.000172,2]
[408528995,1773835838031,-500.0,0.000172,2]
[408528996,1773835838042,-500.0,0.000172,2]
[408528997,1773835838052,-110.07266573,0.000172,2]
[408528998,1773835838064,-389.92733427,0.000172,2]
[408528999,1773835838073,-500.0,0.000172,2]
[408529000,1773835838083,-500.0,0.000172,2]
[408529001,1773835838094,-500.0,0.000172,2]
[408529002,1773835838104,-500.0,0.000172,2]
[408529003,1773835838115,-3895.79245365,0.000174,2]
[408529004,1773835838128,-4165.64400044,0.000174,2]
[408529005,1773835838154,-500.0,0.000172,2]
[408529006,1773835838163,-61730.59397089,0.000174,2]
[408529007,1773835838174,-436.7,0.000174,2]
[408529008,1773835838195,-376.00224399,0.000174,2]
[408529009,1773835838208,-344.4000006,0.000174,2]
[408529012,1773835840387,-500.0,0.00016057,2]
[408529013,1773835840397,-472.15998328,0.00016057,2]
[408529014,1773835840408,-41.97856101,0.00016057,2]
[408529015,1773835840418,-357.557,0.00016458,2]
[408529016,1773835840427,-500.0,0.000172,2]
[408529017,1773835840436,-500.0,0.000172,2]
[408529018,1773835840445,-426.33140681,0.000174,2]
[408529019,1773835840459,-298.78894168,0.000174,2]
[408529047,1773835842860,-822.92379602,0.0001613,2]
[408529048,1773835842872,-2151.68418487,0.0001613,2]
[408529049,1773835842884,-2999.25994936,0.0001613,2]
[408529050,1773835842916,-2016.44576975,0.0001613,2]
[408529051,1773835842925,-245.023011,0.00017116,2]
[408529052,1773835842935,-245.023011,0.000172,2]
[408529053,1773835842944,-7688.01800569,0.000174,2]
[408529054,1773835842955,-1961.42686934,0.000174,2]
[408529055,1773835842966,-709.17,0.000174,2]
[408529061,1773835845943,-245.023011,0.00017116,2]
[408529062,1773835845953,-151.0,0.00017116,2]
[408529063,1773835845963,-245.023011,0.00017116,2]
[408529064,1773835845972,-245.023011,0.000172,2]
[408529065,1773835845982,-245.023011,0.000172,2]
[408529066,1773835845991,-46388.75795601,0.000174,2]
[408529067,1773835846002,-11377.6698263,0.000174,2]
[408529068,1773835846013,-1437.03252553,0.000174,2]
[408529069,1773835846024,-12957.25836996,0.000174,2]
[408529070,1773835846035,-2002.1902,0.000174,2]
[408529071,1773835846045,-52380.86707627,0.000174,2]
[408529072,1773835846075,-12679.05252304,0.000174,2]
[408529073,1773835846097,-4296.75088854,0.000174,2]
[408529075,1773835846163,-366.038,0.000174,2]
[408529076,1773835846175,-452.58,0.000174,2]
[408529080,1773836055125,54422.25033283,0.00030136,120]
[408529081,1773836335570,300.0,0.00030137,120]
[408529082,1773836372622,166.45,0.00013391,2]
[408529086,1773836942969,10000.01,9.5e-05,3]
[408529087,1773836942995,10000.01,9.5e-05,3]
[408529088,1773836943017,10000.01,9.5e-05,3]
[408529089,1773836943038,10000.01,9.5e-05,3]
[408529090,1773836943058,10000.01,9.5e-05,3]
[408529091,1773836943079,10000.01,9.5e-05,3]
[408529092,1773836943102,10000.01,9.5e-05,3]
[408529093,1773836943123,10000.01,9.5e-05,3]
[408529094,1773836943145,10000.01,9.5e-05,3]
[408529095,1773836943167,10000.01,9.5e-05,3]
[408529096,1773836943189,5000.01,9.5e-05,3]
[408529097,1773836943210,5000.01,9.5e-05,3]
[408529098,1773836943240,459480.1088015,9.5e-05,3]
[408529099,1773836943265,100000.0,9.5e-05,3]
[408529100,1773836948497,-4833.56,9.5e-05,3]
[408529101,1773836948622,-5000.01,9.5e-05,3]
[408529102,1773836951679,-5000.01,9.5e-05,3]
[408529103,1773836951863,-5000.01,9.5e-05,3]
[408529104,1773836954513,-5000.01,9.5e-05,3]
[408529105,1773836954617,-5000.01,9.5e-05,3]
[408529106,1773836957672,-5000.01,9.5e-05,3]
[408529107,1773836957899,-5000.01,9.5e-05,3]
[408529108,1773836960498,-5000.01,9.5e-05,3]
[408529109,1773836960743,-5000.01,9.5e-05,3]
[408529110,1773836961443,-9261.37948265,9.5e-05,3]
[408529111,1773836961636,-10000.01,9.5e-05,3]
[408529112,1773836961754,-10000.01,9.5e-05,3]
[408529113,1773836961926,-10000.01,9.5e-05,3]
[408529114,1773836962047,-10000.01,9.5e-05,3]
[408529115,1773836962098,-5334.65819931,9.5e-05,3]
[408529116,1773836962146,-10000.01,9.5e-05,3]
[408529117,1773836962250,-10000.01,9.5e-05,3]
[408529118,1773836962348,-10000.01,9.5e-05,3]
[408529119,1773836962488,-10000.01,9.5e-05,3]
[408529120,1773836962593,-10000.01,9.5e-05,3]
[408529121,1773836963692,-5000.01,9.5e-05,3]
[408529122,1773836963886,-5000.01,9.5e-05,3]
[408529123,1773836966526,-5000.01,9.5e-05,3]
[408529124,1773836966666,-5000.01,9.5e-05,3]
[408529125,1773836969780,-5000.01,9.5e-05,3]
[408529126,1773836969983,-5000.01,9.5e-05,3]
[408529127,1773836971364,-10000.01,9.5e-05,3]
[408529128,1773836971490,-10000.01,9.5e-05,3]
[408529129,1773836971605,-10000.01,9.5e-05,3]
[408529130,1773836971738,-10000.01,9.5e-05,3]
[408529131,1773836971879,-10000.01,9.5e-05,3]
[408529132,1773836971982,-10000.01,9.5e-05,3]
[408529133,1773836972080,-10000.01,9.5e-05,3]
[408529134,1773836972202,-10000.01,9.5e-05,3]
[408529135,1773836972316,-10000.01,9.5e-05,3]
[408529136,1773836972433,-10000.01,9.5e-05,3]
[408529137,1773836972540,-5000.01,9.5e-05,3]
[408529138,1773836972661,-5000.01,9.5e-05,3]
[408529139,1773836975729,-330.0833987,9.491e-05,2]
[408529140,1773836975777,-4339.8432026,9.5e-05,3]
[408529141,1773836975945,-5000.01,9.5e-05,3]
[408529142,1773836978593,-5000.01,9.5e-05,3]
[408529143,1773836978846,-5000.01,9.5e-05,3]
[408529149,1773837031983,-300.0,9.499e-05,2]
[408529150,1773837031992,-300.0,9.499e-05,2]
[408529152,1773837032002,-1075.51726259,9.499e-05,2]
[408529154,1773837032017,-124.48273741,9.499e-05,2]
[408529156,1773837032027,-150.0,9.499e-05,2]
[408529157,1773837032036,-281.11143406,9.499e-05,2]
[408529158,1773837032049,-18.88856594,9.499e-05,2]
[408529159,1773837032063,-1127.54480993,9.5e-05,3]
[408529160,1773837032075,-7351.73334887,9.5e-05,3]
[408529161,1773837032086,-537.97245266,9.5e-05,3]
[408529162,1773837032151,-267.09849734,9.5e-05,3]
[408529163,1773837032163,-182618.26069292,9.5e-05,3]
[408529164,1773837032175,-200.0,9.5e-05,2]
[408529165,1773837032184,-328.64483217,0.00010449,2]
[408529166,1773837032193,-420.0,0.00010449,2]
[408529167,1773837032203,-1680.0,0.00010449,2]
[408529168,1773837032212,-255.0,0.00010449,2]
[408529169,1773837032221,-587.0,0.00011494,2]
[408529170,1773837032230,-1896.0,0.00011494,2]
[408529171,1773837032239,-1163.5861887,0.00012221,2]
[408529172,1773837032250,-3836.4138113,0.00012221,2]
[408529173,1773837032259,-192.0,0.00012643,2]
[408529175,1773837032268,-5000.00754098,0.000162,5]
[408529177,1773837032278,-881.72056823,0.00016388,2]
[408529179,1773837032287,-160.0,0.00016403,2]
[408529181,1773837032297,-201.54502264,0.00016448,2]
[408529182,1773837032307,-181.08010149,0.00016471,2]
[408529183,1773837032316,-1000.0,0.0001648,2]
[408529184,1773837032325,-72165.31752699,0.00016481,2]
[408529185,1773837032339,-85241.98647301,0.00016481,2]
[408529187,1773837032348,-2073.97640644,0.00016488,2]
[408529188,1773837032358,-2500.0,0.00016538,2]
[408529189,1773837032367,-7710.33484658,0.00016545,2]
[408529190,1773837032379,-14166.141346,0.00016545,2]
[408529191,1773837032388,-881.72056816,0.00016604,2]
[408529192,1773837032397,-168.0,0.00016622,2]
[408529193,1773837032407,-151.0,0.00016628,2]
[408529194,1773837032416,-500.0,0.00016628,2]
[408529195,1773837032426,-327.62111398,0.00016628,2]
[408529196,1773837032435,-250.0,0.00016628,2]
[408529197,1773837032444,-161.49585947,0.00016628,2]